bitfinex/quotes_ETHUSD_20260226
["timestamp","ask_amount","ask_price","bid_price","bid_amount"]
[1772116007590,1.20633082,2072.4,2072.3,0.001]
[1772116010802,1.20630752,2072.5,2072.3,0.001]
[1772116011520,1.9361127,2072.7,2072.3,0.001]
[1772116011800,1.93600591,2072.9,2072.4,0.73671918]
[1772116012366,4.82408315,2073.0,2072.4,0.73671918]
[1772116012367,1.20603576,2073.0,2072.4,0.73671918]
[1772116013804,1.20603576,2073.0,2072.5,0.73671918]
[1772116013976,1.93596348,2073.0,2072.5,0.73671918]
[1772116014183,0.72992772,2072.9,2072.3,0.001]
[1772116014798,0.72992772,2072.9,2072.3,0.73771918]
[1772116015215,1.20603576,2073.0,2072.4,0.73671918]
[1772116015775,0.002,2073.2,2072.6,0.73671918]
[1772116017404,0.002,2072.8,2072.6,0.73671918]
[1772116017613,0.002,2073.2,2072.6,0.73671918]
[1772116017614,0.002,2073.0,2072.6,0.73671918]
[1772116019898,0.002,2073.0,2072.6,1.94292169]
[1772116020080,0.002,2073.0,2072.6,0.73671918]
[1772116020690,1.20592349,2073.1,2072.7,1.4690995]
[1772116021493,0.76272645,2073.0,2072.5,0.001]
[1772116021991,1.20603984,2072.9,2072.5,0.001]
[1772116022309,0.76272645,2072.8,2072.5,0.001]
[1772116022883,0.76272645,2072.8,2072.3,0.001]
[1772116024285,1.96888267,2072.7,2072.3,0.001]
[1772116025915,2.56372645,2073.1,2072.5,0.8070401]
[1772116026098,0.002,2073.2,2072.7,2.2761396]
[1772116026099,1.2079134,2073.2,2072.7,2.2761396]
[1772116026690,1.79724131,2073.2,2072.7,0.8070401]
[1772116030212,0.002,2073.2,2072.8,1.4690995]
[1772116030517,0.002,2073.2,2072.8,2.2761396]
[1772116030716,0.002,2073.0,2072.8,2.2761396]
[1772116030892,0.002,2073.2,2072.8,2.2761396]
[1772116031296,0.59850335,2073.2,2072.5,0.001]
[1772116031722,0.59850335,2073.2,2072.5,0.8080401]
[1772116033982,1.20592349,2073.1,2072.6,0.8070401]
[1772116034706,1.80441026,2073.2,2072.6,0.8070401]
[1772116035917,1.80441026,2073.2,2072.7,2.2761396]
[1772116036996,0.002,2073.3,2072.8,2.2761396]
[1772116037204,1.20783295,2073.3,2072.9,0.8070401]
[1772116038197,0.002,2073.3,2072.9,0.8070401]
[1772116038422,1.20781439,2073.3,2072.9,0.8070401]
[1772116038629,1.97054084,2073.3,2072.7,2.86167177]
[1772116038927,1.97054084,2073.3,2072.8,0.8070401]
[1772116039182,0.002,2073.4,2072.8,0.8070401]
[1772116039290,1.20561957,2073.7,2073.1,0.8070401]
[1772116039491,1.86878323,2073.7,2073.1,0.8070401]
[1772116042419,1.86878323,2073.7,2073.1,2.01296323]
[1772116042626,1.86878323,2073.7,2073.1,0.8070401]
[1772116043131,1.86878323,2073.7,2073.2,0.001]
[1772116043625,0.002,2073.3,2073.2,0.001]
[1772116043836,0.6727887,2073.6,2073.2,0.001]
[1772116044002,0.6747887,2073.5,2073.2,0.001]
[1772116044423,1.88048683,2073.5,2073.2,0.001]
[1772116045306,0.67744778,2073.4,2073.0,0.001]
[1772116047635,1.20580716,2073.3,2073.0,0.001]
[1772116048138,1.88902836,2073.3,2073.0,0.001]
[1772116048631,1.20769497,2073.5,2073.0,0.81077747]
[1772116049008,1.89312119,2073.5,2073.0,0.81077747]
[1772116050505,0.68975921,2073.4,2073.0,0.001]
[1772116052326,1.20769136,2073.5,2073.0,4.07138979]
[1772116052528,1.20769136,2073.5,2073.1,0.80977747]
[1772116052834,0.002,2073.5,2073.1,0.80977747]
[1772116053744,1.20557561,2073.7,2073.3,2.86440914]
[1772116053944,1.20557561,2073.7,2073.3,0.80977747]
[1772116054106,1.20557561,2073.7,2073.0,2.05563167]
[1772116054107,1.90165908,2073.7,2073.1,0.80977747]
[1772116054739,0.79496957,2073.6,2073.0,0.001]
[1772116057034,2.00066043,2073.5,2073.3,0.001]
[1772116057201,2.00266043,2073.5,2073.3,0.001]
[1772116060343,2.00266043,2073.5,2073.0,0.001]
[1772116060653,2.00266043,2073.5,2073.0,0.79313561]
[1772116061446,0.81086032,2073.4,2073.1,0.44027161]
[1772116061671,0.81086032,2073.4,2073.0,0.001]
[1772116062345,2.01666748,2073.3,2073.0,0.001]
[1772116063823,2.01666748,2073.3,2073.1,0.44027161]
[1772116064239,2.01666748,2073.3,2073.0,0.44127161]
[1772116066123,1.20580716,2073.3,2073.0,1.23340722]
[1772116066848,1.20579487,2073.4,2073.2,0.44027161]
[1772116067041,1.20579487,2073.4,2073.0,1.23340722]
[1772116067421,2.01665519,2073.4,2073.0,1.23340722]
[1772116067623,0.81086032,2073.3,2073.0,0.001]
[1772116068153,0.81086032,2073.3,2073.0,0.44127161]
[1772116068551,1.20579487,2073.4,2073.0,1.23340722]
[1772116068750,2.01665519,2073.4,2073.0,1.23340722]
[1772116070854,0.81086032,2073.4,2073.0,1.23340722]
[1772116071028,2.01660936,2073.4,2073.2,0.44027161]
[1772116071231,2.01660936,2073.4,2073.2,0.001]
[1772116071621,1.20574904,2073.4,2073.2,0.001]
[1772116071827,0.00293041,2073.7,2073.3,0.79213561]
[1772116071828,1.20855123,2073.7,2073.3,0.79213561]
[1772116072039,1.20855123,2073.7,2073.4,0.44027161]
[1772116072948,5.63280839,2073.9,2073.6,0.44027161]
[1772116073152,1.20556139,2073.8,2073.6,0.44027161]
[1772116073538,1.20556139,2073.8,2073.4,1.23240722]
[1772116074354,1.20556139,2073.8,2073.4,0.44027161]
[1772116074657,1.20556139,2073.8,2073.5,0.79213561]
[1772116075023,4.82194807,2073.9,2073.5,0.79213561]
[1772116075222,1.449,2074.6,2073.8,0.44027161]
[1772116075223,0.81086032,2074.3,2073.8,0.44027161]
[1772116077362,0.82725656,2074.1,2073.8,0.44027161]
[1772116077650,0.82725656,2074.1,2073.6,0.79213561]
[1772116078028,0.82725656,2074.1,2073.6,1.23240722]
[1772116078731,0.82725656,2074.1,2073.6,0.44027161]
[1772116079354,2.03265675,2074.0,2073.6,0.44027161]
[1772116079550,0.82725656,2073.9,2073.6,0.44027161]
[1772116080158,0.82725656,2073.9,2073.4,1.30836232]
[1772116080353,0.82725656,2073.9,2073.2,0.44127161]
[1772116080554,0.82725656,2073.9,2073.4,0.44027161]
[1772116081333,2.032773,2073.8,2073.3,0.86809071]
[1772116082255,0.82725656,2073.7,2073.2,0.001]
[1772116082860,0.82725656,2073.7,2073.0,0.001]
[1772116083228,0.82725656,2073.5,2073.0,0.86909071]
[1772116084212,0.82725656,2073.5,2073.2,0.001]
[1772116085333,1.2057312,2073.5,2073.2,0.001]
[1772116087467,2.03306372,2073.3,2073.2,0.001]
[1772116088174,2.03306372,2073.3,2073.0,0.001]
[1772116088546,1.20580716,2073.3,2073.0,0.001]
[1772116089452,5.65033561,2073.4,2073.0,0.001]
[1772116089666,4.82307905,2073.4,2073.0,0.001]
[1772116089976,0.82725656,2073.3,2073.0,0.001]
[1772116090557,4.82307905,2073.4,2073.0,0.001]
[1772116090980,4.82307905,2073.4,2072.9,0.86509071]
[1772116093281,0.82725656,2073.4,2072.9,0.86509071]
[1772116095285,1.20580716,2073.3,2072.9,0.86509071]
[1772116095514,1.20573867,2073.5,2073.0,0.86809071]
[1772116096602,3.04768095,2073.6,2073.3,0.86809071]
[1772116097071,1.20568095,2073.6,2073.3,0.86809071]
[1772116097394,5.65168852,2073.7,2073.3,0.86809071]
[1772116097692,0.002,2073.5,2073.3,0.86809071]
[1772116098899,0.002,2073.7,2073.4,0.86809071]
[1772116099229,1.20537433,2074.1,2073.6,0.86809071]
[1772116099366,4.82123529,2074.2,2073.7,0.86809071]
[1772116099367,1.20528396,2074.2,2073.7,0.86809071]
[1772116099572,6.66945301,2074.5,2074.0,0.86809071]
[1772116099573,3.05415337,2074.5,2074.0,0.86809071]
[1772116099776,3.88140993,2074.5,2074.0,0.86809071]
[1772116100379,3.05415337,2074.5,2074.0,0.86809071]
[1772116100580,0.82725656,2074.4,2073.7,0.86809071]
[1772116101396,4.82034769,2074.6,2074.1,0.86809071]
[1772116101397,0.82725656,2074.6,2074.1,0.86809071]
[1772116101601,0.82725656,2074.6,2074.2,1.16134758]
[1772116102142,4.81999188,2074.7,2073.1,0.86809071]
[1772116102143,0.82725656,2074.2,2073.1,0.86809071]
[1772116102429,5.19516875,2074.7,2073.5,0.86809071]
[1772116102430,0.82725656,2074.6,2073.5,0.86809071]
[1772116102572,4.81999188,2074.7,2073.0,2.34705496]
[1772116102573,0.82725656,2074.7,2074.2,1.16134758]
[1772116102776,0.82725656,2074.7,2074.2,0.29325687]
[1772116103185,0.82725656,2074.7,2074.0,1.16134758]
[1772116103727,0.82725656,2074.5,2074.0,1.16134758]
[1772116105783,1.20516775,2074.4,2074.1,0.86809071]
[1772116106408,0.86995947,2074.3,2073.8,0.29325687]
[1772116106613,0.86995947,2074.3,2073.7,2.54000061]
[1772116107486,0.86995947,2074.3,2073.0,2.64031183]
[1772116107487,0.86995947,2074.3,2073.5,1.12600061]
[1772116107804,0.86995947,2074.0,2073.5,2.54000061]
[1772116108005,0.86995947,2074.0,2073.7,0.29325687]
[1772116108412,0.86995947,2074.0,2073.5,1.70725687]
[1772116109332,0.86995947,2074.0,2073.5,1.414]
[1772116109832,1.20545831,2073.9,2073.5,1.414]
[1772116110001,2.07538777,2074.0,2073.5,2.24674374]
[1772116110188,2.07538777,2074.0,2073.6,0.83274374]
[1772116110517,1.2054283,2074.0,2073.8,0.001]
[1772116111423,2.07733831,2074.1,2073.8,0.001]
[1772116112212,0.86995947,2074.0,2073.5,1.415]
[1772116112526,0.86995947,2074.0,2073.5,2.24774374]
[1772116113237,0.86995947,2074.0,2073.0,0.83374374]
[1772116113441,0.86995947,2073.7,2072.8,0.001]
[1772116115918,0.86995947,2073.4,2072.9,0.26324277]
[1772116116301,0.86995947,2073.4,2072.8,0.001]
[1772116116713,0.86995947,2073.4,2072.8,0.26722348]
[1772116117217,4.82276344,2073.6,2073.1,0.26917734]
[1772116117218,1.20567588,2073.6,2073.1,0.26917734]
[1772116117422,1.20554861,2073.8,2073.2,0.27208621]
[1772116117622,4.8218858,2073.9,2073.4,0.27208621]
[1772116117623,1.20549118,2073.9,2073.4,0.27208621]
[1772116118218,1.20549118,2073.9,2073.4,1.47783185]
[1772116118425,1.20549118,2073.9,2073.4,0.27208621]
[1772116118626,1.20549118,2073.9,2073.2,0.2749589]
[1772116118843,0.89274011,2073.8,2073.2,0.2749589]
[1772116119900,2.09831468,2073.7,2073.2,0.2749589]
[1772116120499,0.89274011,2073.4,2072.8,0.001]
[1772116121999,2.09854727,2073.3,2072.8,0.001]
[1772116125605,2.09831468,2073.7,2073.0,0.29524513]
[1772116126627,1.20557457,2073.7,2073.1,0.29686924]
[1772116126799,0.002,2073.5,2073.1,0.29686924]
[1772116128526,0.002,2073.7,2073.2,0.30004495]
[1772116129604,0.002,2073.7,2073.3,0.30258284]
[1772116132206,0.89474011,2073.7,2073.2,1.408]
[1772116132614,0.89274011,2073.5,2073.0,0.001]
[1772116134906,2.09848912,2073.4,2073.0,0.001]
[1772116135835,2.09848912,2073.4,2072.8,0.26925296]
[1772116136931,0.90787799,2073.3,2072.7,1.409]
[1772116137419,0.90787799,2073.3,2072.7,1.68374205]
[1772116138320,0.90787799,2073.3,2072.7,1.409]
[1772116138525,0.90787799,2073.3,2072.7,1.359]
[1772116138842,0.90787799,2073.3,2073.0,0.001]
[1772116139027,2.11374331,2073.2,2073.0,0.001]
[1772116139340,2.11374331,2073.2,2072.8,0.001]
[1772116140242,0.90787799,2073.1,2072.8,0.001]
[1772116141113,2.11385965,2073.0,2072.5,0.001]
[1772116141740,0.90787799,2072.9,2072.5,0.001]
[1772116141911,2.67291707,2073.0,2072.3,0.001]
[1772116141912,0.90787799,2072.7,2072.3,0.001]
[1772116143246,0.90787799,2072.5,2072.0,0.001]
[1772116145342,0.90787799,2072.3,2072.0,0.001]
[1772116147537,1.20644725,2072.2,2072.0,0.001]
[1772116147750,0.90787799,2072.8,2072.0,0.29278113]
[1772116147935,0.90787799,2072.7,2072.0,0.29278113]
[1772116150853,0.90787799,2072.5,2072.2,0.001]
[1772116151051,0.90987799,2072.5,2072.2,0.001]
[1772116152762,1.20633082,2072.4,2072.2,0.001]
[1772116154574,1.20831804,2072.5,2072.2,0.001]
[1772116154858,0.002,2072.5,2072.2,0.30359528]
[1772116155079,0.002,2072.7,2072.3,0.30059528]
[1772116156762,0.002,2073.0,2072.6,0.30352915]
[1772116159666,0.002,2073.0,2072.6,1.50974181]
[1772116159964,0.002,2073.0,2072.6,0.30352915]
[1772116160834,0.002,2073.0,2072.2,0.001]
[1772116160835,0.90987799,2073.0,2072.2,0.31019846]
[1772116161146,0.90987799,2073.0,2072.3,0.30919846]
[1772116161346,0.90987799,2073.0,2072.3,1.51555744]
[1772116161347,1.20603984,2072.9,2072.3,1.51555744]
[1772116161569,2.11391783,2072.9,2072.3,0.30919846]
[1772116161870,2.11391783,2072.9,2072.3,1.51558474]
[1772116163174,2.11391783,2072.9,2072.3,0.30919846]
[1772116163670,2.11391783,2072.9,2072.3,1.51558572]
[1772116163840,2.11391783,2072.9,2072.8,0.001]
[1772116164041,2.11391783,2072.9,2072.3,1.51558572]
[1772116164253,0.002,2072.8,2072.4,0.31328117]
[1772116164459,0.002,2072.8,2072.5,0.001]
[1772116169173,0.002,2072.8,2072.5,0.32205003]
[1772116169472,0.002,2073.0,2072.6,0.32029481]
[1772116169681,0.97355933,2072.9,2072.6,1.397]
[1772116169841,1.20798227,2073.0,2072.6,1.71729481]
[1772116170046,1.20798227,2073.0,2072.7,0.32029481]
[1772116170242,0.002,2073.0,2072.7,0.32029481]
[1772116172080,0.002,2073.0,2072.7,1.52644039]
[1772116172456,0.002,2073.0,2072.7,0.32029481]
[1772116172973,0.002,2073.0,2072.6,1.397]
[1772116172974,0.97555933,2073.0,2072.6,1.397]
[1772116173990,2.18154611,2073.0,2072.6,1.397]
[1772116176892,0.97355933,2072.9,2072.6,1.397]
[1772116177189,0.97555933,2072.8,2072.6,1.397]
[1772116178192,2.18166461,2072.8,2072.6,1.397]
[1772116179073,2.18165927,2072.8,2072.6,1.397]
[1772116180195,0.002,2072.8,2072.5,0.33614761]
[1772116180562,0.93252243,2072.8,2072.5,0.001]
[1772116182495,0.93052243,2072.6,2072.5,0.001]
[1772116185702,2.13673684,2072.6,2072.5,0.001]
[1772116185996,0.93052243,2072.6,2072.5,0.001]
[1772116186882,2.13673684,2072.6,2072.5,0.001]
[1772116187408,0.93052243,2072.6,2072.5,0.001]
[1772116188508,2.13673684,2072.6,2072.5,0.001]
[1772116190203,2.13673684,2072.6,2072.0,0.001]
[1772116190204,0.93052243,2072.5,2072.0,0.001]
[1772116192480,0.93052243,2072.3,2072.0,0.001]
[1772116195311,2.13695891,2072.3,2072.0,0.001]
[1772116195490,0.93052243,2072.2,2072.0,0.001]
[1772116196388,0.96587555,2072.3,2072.0,0.35387638]
[1772116197375,2.17226691,2072.3,2072.0,0.35387638]
[1772116197576,0.96587555,2072.2,2072.0,0.001]
[1772116199507,2.17232884,2072.2,2072.0,0.001]
[1772116199705,2.17232688,2072.2,2072.0,0.001]
[1772116199885,0.96587555,2072.1,2072.0,0.001]
[1772116200282,0.96587555,2072.1,2071.8,0.001]
[1772116200516,1.872,2072.3,2071.9,0.35634381]
[1772116200687,0.96587555,2072.2,2071.8,0.001]
[1772116201013,0.96587555,2072.2,2071.5,0.35734381]
[1772116201014,0.96587555,2072.0,2071.5,0.35734381]
[1772116201319,0.99548112,2071.8,2071.1,0.001]
[1772116201485,0.99548112,2071.6,2071.1,0.001]
[1772116201822,0.99548112,2071.6,2070.6,0.001]
[1772116203113,3.89731927,2071.9,2070.6,0.001]
[1772116203114,0.99548112,2071.4,2070.7,0.00222982]
[1772116203290,0.99548112,2071.6,2070.7,0.00222982]
[1772116203492,0.99548112,2071.6,2070.6,0.001]
[1772116203735,0.99548112,2071.3,2070.6,0.001]
[1772116203899,0.99548112,2071.1,2070.6,0.001]
[1772116205218,0.99548112,2071.1,2069.7,4.83158429]
[1772116205382,0.99498112,2070.8,2069.8,2.60384564]
[1772116205581,0.99498112,2070.8,2069.8,1.4024708]
[1772116205815,0.99498112,2070.6,2069.8,1.4024708]
[1772116206116,0.99498112,2070.2,2069.3,0.001]
[1772116206317,0.99498112,2070.5,2069.6,0.00753502]
[1772116206893,2.87098112,2070.7,2069.6,0.00753502]
[1772116207104,0.99498112,2070.6,2069.6,0.00753502]
[1772116207416,0.99498112,2070.4,2069.5,0.00858448]
[1772116207624,1.20740542,2070.6,2069.6,0.00858448]
[1772116207927,0.99498112,2070.5,2069.6,0.00858448]
[1772116208519,0.99498112,2070.5,2069.4,2.61766147]
[1772116208831,1.20740542,2070.6,2069.3,4.83342598]
[1772116208832,0.99498112,2070.3,2069.3,1.20913434]
[1772116209129,0.99498112,2070.3,2069.4,0.00962377]
[1772116209432,0.99498112,2070.3,2069.3,0.001]
[1772116209828,1.20761279,2070.2,2069.3,0.001]
[1772116210037,0.99498112,2070.1,2069.3,0.001]
[1772116210550,0.99498112,2070.1,2069.4,0.01168092]
[1772116210751,1.20761279,2070.2,2069.4,0.01168092]
[1772116211233,0.99498112,2070.1,2069.3,0.01268092]
[1772116212032,0.99498112,2069.9,2069.3,0.001]
[1772116213904,0.99498112,2069.7,2069.3,0.001]
[1772116214234,0.99498112,2069.7,2069.5,0.001]
[1772116214543,0.99498112,2069.7,2069.0,1.20927164]
[1772116214544,0.99448112,2069.6,2069.0,0.001]
[1772116214713,0.99448112,2069.3,2068.4,2.63835213]
[1772116214909,0.99448112,2069.3,2068.3,1.22538115]
[1772116215142,0.99448112,2069.3,2068.4,0.01669271]
[1772116215508,0.99448112,2069.3,2068.3,1.20871693]
[1772116215906,0.99448112,2069.1,2068.2,1.22639734]
[1772116216141,0.99448112,2069.1,2068.1,3.76002084]
[1772116216527,0.99448112,2069.1,2068.1,2.55120671]
[1772116216729,0.99448112,2069.1,2068.0,0.80157021]
[1772116216730,0.99448112,2069.1,2068.0,2.01044213]
[1772116217026,0.99448112,2069.4,2068.3,0.01862084]
[1772116217212,2.20238564,2069.7,2068.6,0.01862084]
[1772116217402,0.99448112,2069.7,2068.9,0.01955672]
[1772116217606,0.99448112,2069.7,2068.6,1.43655672]
[1772116217837,0.99448112,2069.1,2068.2,0.01955672]
[1772116218142,0.99448112,2069.3,2068.4,0.01955672]
[1772116218434,4.83126525,2069.9,2068.3,1.20872213]
[1772116218435,0.99448112,2069.5,2068.8,0.02048184]
[1772116218604,0.99448112,2069.5,2068.5,1.418]
[1772116218802,0.99448112,2069.5,2068.5,1.43848184]
[1772116219736,0.99448112,2069.5,2068.6,1.47371786]
[1772116219940,0.99448112,2069.5,2068.5,1.418]
[1772116219941,0.99448112,2070.3,2069.1,1.22964934]
[1772116220130,0.99448112,2070.2,2069.3,0.02229502]
[1772116220313,1.20749646,2070.4,2069.5,1.47371786]
[1772116220514,2.20197758,2070.4,2069.5,1.47371786]
[1772116220917,0.99448112,2070.8,2069.9,1.47371786]
[1772116221119,0.99448112,2070.8,2069.4,1.47371786]
[1772116221120,0.99448112,2070.8,2069.8,0.02229502]
[1772116221518,0.99448112,2070.8,2069.8,1.421]
[1772116221922,1.20732119,2070.7,2069.9,1.20778781]
[1772116222236,0.99448112,2070.6,2069.8,2.62879956]
[1772116222617,0.99448112,2070.6,2069.8,1.421]
[1772116222913,0.99448112,2070.5,2069.4,1.20807963]
[1772116223510,0.99448112,2070.5,2069.3,1.23216073]
[1772116223910,0.99448112,2070.5,2069.2,6.25471684]
[1772116223911,0.99448112,2070.2,2069.2,1.422]
[1772116224112,0.99448112,2070.2,2069.0,0.02493681]
[1772116224347,0.99448112,2069.9,2068.7,1.23424485]
[1772116224650,0.99448112,2069.9,2068.7,0.02580233]
[1772116224817,0.99448112,2069.8,2068.7,1.20848302]
[1772116225017,0.99448112,2069.6,2068.6,1.425]
[1772116225242,0.99448112,2069.6,2068.6,2.63353486]
[1772116225713,0.99448112,2069.6,2068.6,2.66019153]
[1772116225915,0.99448112,2069.7,2068.6,2.63353486]
[1772116226317,0.99448112,2069.7,2068.7,0.001]
[1772116226318,0.99448112,2069.6,2068.7,0.001]
[1772116226640,0.99448112,2069.6,2068.7,1.50305198]
[1772116226821,2.20232728,2069.8,2068.8,0.02833412]
[1772116227225,4.83138467,2069.9,2069.0,1.50287571]
[1772116227226,1.20782963,2069.9,2069.0,1.50287571]
[1772116227418,1.20782963,2069.9,2069.0,0.02915785]
[1772116228113,2.20219638,2070.1,2069.2,0.02915785]
[1772116228315,4.83233286,2070.3,2069.1,2.68197265]
[1772116228316,1.20960816,2070.3,2069.4,1.50368707]
[1772116228651,1.20960816,2070.3,2069.5,0.02996921]
[1772116229214,0.002,2070.5,2070.0,1.47371786]
[1772116229419,0.002,2070.8,2070.0,1.50248903]
[1772116229724,0.002,2070.8,2070.3,1.47371786]
[1772116229927,0.002,2070.8,2070.1,2.68391242]
[1772116230125,0.002,2070.8,2070.2,1.20761279]
[1772116230447,0.002,2070.8,2070.1,2.68391242]
[1772116230448,0.99748112,2070.8,2070.0,2.68144701]
[1772116230613,0.99748112,2070.8,2069.8,1.20781018]
[1772116231651,0.99748112,2070.8,2069.7,1.20785921]
[1772116232019,0.99548112,2070.5,2069.1,1.20825479]
[1772116232325,0.99548112,2070.3,2069.2,1.50406521]
[1772116232528,0.99548112,2070.3,2069.1,2.63725479]
[1772116232529,0.99548112,2070.2,2069.1,1.429]
[1772116232846,0.99548112,2070.2,2069.1,2.63725101]
[1772116233155,0.99548112,2069.3,2068.2,0.001]
[1772116233317,0.99548112,2068.8,2068.2,0.001]
[1772116233518,0.99548112,2068.5,2067.3,1.43]
[1772116233749,0.99548112,2068.5,2067.2,1.24123782]
[1772116233750,0.99548112,2068.2,2067.2,0.25271312]
[1772116233959,2.94743572,2068.8,2067.2,1.46207214]
[1772116233960,0.99548112,2067.9,2067.2,1.46207214]
[1772116234157,2.20420482,2068.3,2067.5,1.47371786]
[1772116234328,2.20420482,2068.3,2067.2,1.49396935]
[1772116234532,0.99548112,2068.1,2067.2,0.25271312]
[1772116234871,0.99548112,2067.5,2066.4,1.20978322]
[1772116235148,0.99548112,2067.2,2066.1,3.83198185]
[1772116235355,2.94743572,2067.6,2065.9,1.327]
[1772116235356,1.47371786,2067.1,2065.9,1.327]
[1772116235526,2.46919898,2066.4,2065.2,1.2105365]
[1772116235734,0.99548112,2066.4,2065.6,1.47371786]
[1772116236231,0.99548112,2066.4,2063.6,2.63856761]
[1772116236232,0.99548112,2065.6,2063.6,2.63856761]
[1772116236552,0.99548112,2065.3,2063.8,4.84472651]
[1772116236715,0.99548112,2065.3,2063.9,1.47371786]
[1772116236915,0.99548112,2065.3,2063.7,0.11608334]
[1772116237151,0.99548112,2065.3,2063.8,0.03416334]
[1772116237337,0.99548112,2066.1,2063.8,0.03416334]
[1772116237724,0.99548112,2065.8,2064.4,1.47371786]
[1772116237955,0.99548112,2065.8,2064.1,2.63856761]
[1772116237956,0.99548112,2065.7,2064.1,2.63856761]
[1772116238160,0.99548112,2065.5,2064.4,1.21100561]
[1772116238367,0.99548112,2065.4,2064.0,2.68492431]
[1772116238745,3.40071786,2065.5,2064.0,2.68492431]
[1772116238746,0.99548112,2065.1,2064.0,2.68495332]
[1772116239079,0.99548112,2064.7,2063.4,1.47371786]
[1772116239279,0.99548112,2064.1,2063.0,1.37458826]
[1772116239576,0.99548112,2064.1,2062.9,1.21188617]
[1772116239778,0.99548112,2064.1,2062.2,3.97192836]
[1772116239779,0.99548112,2063.9,2062.3,4.84890472]
[1772116240240,0.99548112,2063.9,2062.2,3.7022744]
[1772116240241,0.99548112,2063.4,2062.2,1.21228558]
[1772116240441,0.99548112,2063.3,2062.1,1.44]
[1772116240642,0.99548112,2063.3,2062.1,2.65234231]
[1772116240972,4.92735075,2064.3,2062.1,2.65234231]
[1772116240973,0.94664216,2064.5,2062.8,1.48189272]
[1772116241160,0.94664216,2064.5,2062.9,1.442]
[1772116241365,0.94664216,2064.2,2062.4,3.67103564]
[1772116241777,0.94664216,2063.0,2060.7,1.59207712]
[1772116242074,0.94664216,2062.4,2060.8,5.82001358]
[1772116242270,0.94664216,2062.2,2060.8,5.82001358]
[1772116242472,0.94664216,2062.2,2060.8,2.18112111]
[1772116242473,0.94664216,2062.1,2060.8,2.18112111]
[1772116242780,0.94664216,2062.7,2060.9,0.13705606]
[1772116242979,0.94664216,2062.7,2061.3,1.48189272]
[1772116243290,0.94664216,2062.7,2061.6,1.48189272]
[1772116243502,0.94664216,2063.5,2061.7,0.18685624]
[1772116243780,0.94664216,2063.4,2062.0,1.48189272]
[1772116243943,0.94664216,2063.4,2062.1,2.49003564]
[1772116244140,0.94664216,2063.4,2061.6,1.45]
[1772116244445,0.94664216,2062.9,2061.6,2.6626394]
[1772116244668,0.94664216,2062.6,2061.0,1.21300339]
[1772116244975,0.94664216,2062.1,2060.6,1.21323886]
[1772116245177,0.94664216,2062.0,2060.6,1.21323886]
[1772116245379,0.94664216,2061.8,2060.2,1.21347441]
[1772116245552,0.94664216,2061.8,2060.0,1.17630867]
[1772116245771,1.48189272,2060.9,2059.4,1.21391071]
[1772116245978,1.48189272,2060.9,2059.1,1.63660875]
[1772116245979,0.94664216,2059.7,2057.4,2.46157668]
[1772116246164,1.48189272,2058.6,2057.4,1.25009352]
[1772116246361,2.58131207,2059.6,2057.4,1.25009352]
[1772116246362,1.01665708,2060.2,2057.4,1.21512588]
[1772116246593,1.01665708,2060.2,2058.3,1.48189272]
[1772116246779,1.01665708,2060.2,2058.7,1.48189272]
[1772116247174,0.53665708,2060.2,2058.8,0.08192]
[1772116247370,0.51707031,2060.2,2058.5,0.4812082]
[1772116247574,0.91255295,2060.0,2058.4,1.92329236]
[1772116247770,0.91255295,2060.0,2057.2,4.11918495]
[1772116247771,0.91255295,2059.2,2057.2,4.11918495]
[1772116247973,0.91255295,2058.9,2057.5,0.783]
[1772116248200,0.08192,2059.5,2056.5,0.50201028]
[1772116248201,2.39444567,2058.6,2056.5,0.50201028]
[1772116248367,2.39444567,2058.6,2056.8,0.50201028]
[1772116248568,0.91255295,2059.2,2057.3,0.08192]
[1772116248768,0.91255295,2058.9,2057.5,0.08192]
[1772116248991,0.91255295,2058.9,2057.4,0.783]
[1772116249499,2.69596869,2059.2,2056.8,0.50321386]
[1772116249500,0.91255295,2059.1,2056.8,0.50321386]
[1772116249803,1.48189272,2058.6,2056.8,0.50321386]
[1772116250106,0.91255295,2058.5,2056.7,1.081]
[1772116250409,1.01661369,2058.2,2056.8,1.21548035]
[1772116250616,1.48189272,2059.0,2057.0,0.00529626]
[1772116250777,1.01661369,2058.9,2057.4,0.18685624]
[1772116250968,1.01661369,2058.9,2057.5,1.473]
[1772116251471,1.01661369,2059.4,2058.2,0.26877624]
[1772116251666,1.01661369,2059.9,2058.2,0.26877624]
[1772116251890,4.85348145,2060.4,2058.8,0.26877624]
[1772116251891,1.01661369,2060.4,2058.8,0.26877624]
[1772116252099,1.01661369,2060.4,2059.0,0.26877624]
[1772116252398,1.01661369,2060.4,2059.1,1.21412267]
[1772116252399,1.48189272,2060.0,2059.1,1.21412267]
[1772116252598,1.48189272,2060.0,2058.4,1.21453556]
[1772116252599,1.48189272,2059.6,2058.4,1.21453556]
[1772116252785,1.01661369,2059.9,2058.5,0.18685624]
[1772116253104,0.08192,2060.8,2058.5,0.18685624]
[1772116253105,1.01661369,2060.5,2058.8,0.27715994]
[1772116253498,1.01661369,2061.0,2058.9,0.00988539]
[1772116253703,1.01661369,2060.6,2058.8,0.26877624]
[1772116254367,1.01661369,2061.1,2059.2,0.26877624]
[1772116254568,1.01661369,2061.1,2059.3,0.01136978]
[1772116254898,11.26938021,2062.0,2059.3,0.01136978]
[1772116254899,1.01661369,2061.6,2059.6,0.28014602]
[1772116255104,2.22928741,2061.6,2059.7,0.01136978]
[1772116255397,2.22926689,2061.6,2060.2,0.26877624]
[1772116255599,1.01661369,2061.6,2060.2,0.26877624]
[1772116256007,1.01661369,2061.6,2060.2,1.73577993]
[1772116256327,1.01661369,2061.6,2060.4,0.08192]
[1772116256529,1.21248162,2061.9,2060.4,1.51092]
[1772116256677,1.01661369,2062.0,2060.4,1.51092]
[1772116256912,1.00901492,2062.0,2060.4,1.51092]
[1772116258004,1.00901492,2062.0,2060.5,0.18685624]
[1772116258307,1.21221656,2062.4,2060.8,1.21312111]
[1772116258528,1.01281431,2062.3,2060.9,0.26877624]
[1772116258677,1.01281431,2062.3,2061.1,0.26877624]
[1772116258878,1.874,2063.2,2061.1,0.26877624]
[1772116258879,1.01281431,2063.7,2061.8,1.48189272]
[1772116259184,1.21135768,2063.8,2061.9,0.96985624]
[1772116259185,1.01281431,2063.5,2061.9,0.96985624]
[1772116259390,1.01281431,2063.1,2061.9,0.783]
[1772116260099,1.01281431,2063.1,2061.9,0.56177624]
[1772116260275,1.01281431,2063.1,2061.9,0.55259591]
[1772116260481,1.01281431,2063.1,2060.8,1.21308391]